bitfinex/quotes_BTCUSD_20240927
["timestamp","ask_amount","ask_price","bid_price","bid_amount"]
[1727398940852,1.48500306,65366.0,65354.0,0.107108]
[1727398941059,1.49000306,65366.0,65354.0,0.107108]
[1727398941917,1.49000306,65366.0,65353.0,0.10711]
[1727398942141,1.333615,65366.0,65351.0,0.215052]
[1727398942406,1.333615,65366.0,65354.0,0.107108]
[1727398943022,1.333615,65366.0,65354.0,0.107107]
[1727398943245,1.326615,65366.0,65355.0,0.214214]
[1727398943461,0.372205,65366.0,65358.0,0.107101]
[1727398943710,0.207089,65366.0,65358.0,0.107101]
[1727398943902,0.365205,65366.0,65358.0,0.107101]
[1727398944174,0.370205,65366.0,65358.0,0.107101]
[1727398944390,0.365205,65366.0,65355.0,0.214214]
[1727398944599,0.367205,65366.0,65355.0,0.214214]
[1727398944812,0.367205,65366.0,65357.0,0.107103]
[1727398945895,0.367205,65366.0,65356.0,0.107104]
[1727398946079,0.367205,65366.0,65354.0,0.0822]
[1727398946299,0.336825,65366.0,65356.0,0.107104]
[1727398946723,0.338825,65366.0,65356.0,0.107104]
[1727398947806,0.338825,65366.0,65357.0,0.107103]
[1727398948030,0.338825,65366.0,65354.0,0.296415]
[1727398948247,0.338825,65366.0,65354.0,0.0822]
[1727398948463,0.338825,65366.0,65355.0,0.107106]
[1727398948677,0.610193,65366.0,65355.0,0.107106]
[1727398950222,0.592405,65366.0,65355.0,0.107106]
[1727398950848,0.592405,65366.0,65354.0,0.296415]
[1727398951006,0.574405,65366.0,65354.0,0.296415]
[1727398951214,0.574405,65366.0,65354.0,0.189307]
[1727398951493,0.574405,65366.0,65356.0,0.107104]
[1727398951690,0.354613,65366.0,65357.0,0.107103]
[1727398952442,0.207089,65366.0,65358.0,0.1071]
[1727398952672,0.20690498,65366.0,65359.0,0.1071]
[1727398952917,0.20890498,65366.0,65357.0,0.214206]
[1727398953166,0.002,65366.0,65358.0,0.00305985]
[1727398953361,0.002,65366.0,65365.0,0.108744]
[1727398953573,0.002,65366.0,65365.0,0.19400348]
[1727398953790,0.001656,65367.0,65366.0,0.203289]
[1727398954655,0.22936306,65375.0,65366.0,0.0962]
[1727398954874,0.22936306,65375.0,65374.0,0.28533272]
[1727398955060,0.295979,65397.0,65383.0,0.10706]
[1727398955061,0.91778905,65387.0,65383.0,0.10706]
[1727398955192,0.91778905,65387.0,65382.0,0.214125]
[1727398955404,0.91778905,65387.0,65376.0,0.17825672]
[1727398955821,0.91778905,65387.0,65379.0,0.214135]
[1727398956041,0.91778905,65387.0,65385.0,0.107057]
[1727398956455,0.1,65388.0,65384.0,0.107059]
[1727398956879,0.09967089,65388.0,65384.0,0.107059]
[1727398957090,0.09967089,65388.0,65379.0,0.214135]
[1727398957335,0.91778905,65387.0,65374.0,0.0822]
[1727398957556,0.91778905,65387.0,65368.0,0.03066]
[1727398957557,1.09704577,65387.0,65368.0,0.0822]
[1727398957809,0.107068,65379.0,65373.0,0.107077]
[1727398958444,1.12187877,65387.0,65375.0,0.107074]
[1727398958445,0.107064,65382.0,65375.0,0.107074]
[1727398958648,0.107065,65381.0,65375.0,0.107074]
[1727398958858,0.107066,65380.0,65373.0,0.107077]
[1727398959072,0.107066,65380.0,65374.0,0.107076]
[1727398959282,0.214114,65386.0,65371.0,0.214159]
[1727398959505,0.91778905,65380.0,65366.0,0.04550428]
[1727398959733,0.107071,65377.0,65366.0,0.214175]
[1727398959957,0.107074,65375.0,65370.0,0.107082]
[1727398960176,0.107073,65376.0,65371.0,0.10708]
[1727398960430,0.214138,65379.0,65367.0,0.214175]
[1727398960638,0.10707,65378.0,65372.0,0.107079]
[1727398960886,0.10707,65378.0,65370.0,0.214165]
[1727398960887,0.107072,65377.0,65371.0,0.10708]
[1727398961106,0.214136,65379.0,65373.0,0.107077]
[1727398961107,0.107068,65379.0,65373.0,0.107077]
[1727398961957,0.107072,65377.0,65372.0,0.107079]
[1727398962161,0.214136,65379.0,65370.0,0.214165]
[1727398962162,0.107068,65379.0,65373.0,0.107077]
[1727398962989,0.107068,65379.0,65374.0,0.107075]
[1727398964484,0.107068,65379.0,65370.0,0.214162]
[1727398964677,0.107068,65379.0,65373.0,0.107077]
[1727398966486,0.214135,65380.0,65373.0,0.107077]
[1727398966712,0.107069,65379.0,65373.0,0.107077]
[1727398967563,1.09604577,65387.0,65381.0,0.107064]
[1727398967564,0.107055,65387.0,65381.0,0.107064]
[1727398967778,0.214106,65389.0,65376.0,0.0822]
[1727398967779,0.107061,65383.0,65376.0,0.0822]
[1727398968038,0.107059,65384.0,65379.0,0.107067]
[1727398968750,1.13190305,65386.0,65380.0,0.107065]
[1727398968751,1.23896005,65386.0,65380.0,0.107065]
[1727398968965,0.107059,65385.0,65380.0,0.107065]
[1727398969177,0.107061,65384.0,65377.0,0.107069]
[1727398969393,0.107063,65382.0,65376.0,0.189271]
[1727398969602,0.10706,65384.0,65378.0,0.107068]
[1727398970280,1.13273105,65386.0,65376.0,0.296345]
[1727398970533,1.13273105,65386.0,65377.0,0.21414]
[1727398970534,0.107062,65383.0,65377.0,0.21414]
[1727398970754,1.13273105,65386.0,65377.0,0.214142]
[1727398970974,0.107063,65382.0,65376.0,0.189271]
[1727398971201,1.13273105,65386.0,65376.0,0.296344]
[1727398971427,0.10706,65384.0,65379.0,0.107067]
[1727398971655,1.13273105,65386.0,65377.0,0.10707]
[1727398971919,0.91861705,65386.0,65372.0,0.214157]
[1727398972157,1.04712777,65386.0,65365.0,0.215835]
[1727398972365,0.107076,65374.0,65369.0,0.107083]
[1727398972630,0.107077,65373.0,65366.0,0.0822]
[1727398972867,0.0535365,65373.0,65365.0,0.001654]
[1727398973275,0.107089,65366.0,65365.0,0.001654]
[1727398973283,0.28534572,65366.0,65365.0,0.001654]
[1727398973501,0.107087,65368.0,65365.0,0.001654]
[1727398974193,0.321255,65369.0,65365.0,0.001654]
[1727398974456,0.001,65366.0,65365.0,0.001654]
[1727398975825,0.214169,65369.0,65365.0,0.001654]
[1727398976062,0.001,65368.0,65365.0,0.001654]
[1727398976292,0.214169,65369.0,65365.0,0.001654]
[1727398976554,0.321254,65369.0,65365.0,0.001654]
[1727398976780,0.001,65366.0,65365.0,0.001654]
[1727398977029,0.107085,65369.0,65365.0,0.001654]
[1727398977262,0.001,65368.0,65367.0,0.107087]
[1727398977488,0.107078,65373.0,65368.0,0.107085]
[1727398977720,0.44362685,65376.0,65365.0,0.001654]
[1727398978393,0.1,65377.0,65365.0,0.001654]
[1727398978394,0.91784521,65375.0,65369.0,0.107084]
[1727398978624,0.107073,65376.0,65370.0,0.107082]
[1727398978851,0.91784521,65375.0,65370.0,0.107082]
[1727398979092,1.02491921,65375.0,65370.0,0.107082]
[1727398979564,1.02691921,65375.0,65370.0,0.107082]
[1727398980039,1.02491921,65375.0,65370.0,0.107082]
[1727398980250,1.13399521,65375.0,65365.0,0.001654]
[1727398980486,1.13399521,65375.0,65367.0,0.10692534]
[1727398980487,0.107078,65373.0,65367.0,0.10692534]
[1727398980725,0.107082,65371.0,65365.0,0.001654]
[1727398980974,0.10708,65372.0,65367.0,0.107086]
[1727398981257,0.91984521,65375.0,65365.0,0.001654]
[1727398981498,0.107077,65373.0,65368.0,0.107085]
[1727398982417,0.107077,65373.0,65367.0,0.108741]
[1727398982418,0.321234,65373.0,65367.0,0.108741]
[1727398982638,0.107078,65373.0,65367.0,0.108741]
[1727398982851,0.107078,65373.0,65368.0,0.107085]
[1727398983293,0.107078,65373.0,65369.0,0.107083]
[1727398983294,0.001,65373.0,65369.0,0.107083]
[1727398983507,0.107075,65375.0,65369.0,0.107083]
[1727398983724,0.107075,65375.0,65370.0,0.107082]
[1727398983943,0.001,65373.0,65370.0,0.107082]
[1727398984176,0.107075,65375.0,65370.0,0.107082]
[1727398985046,0.107078,65373.0,65367.0,0.001654]
[1727398985266,0.107078,65373.0,65369.0,0.107084]
[1727398985488,0.214152,65374.0,65368.0,0.107086]
[1727398985707,0.108078,65373.0,65369.0,0.107084]
[1727398985923,0.108078,65373.0,65367.0,0.001654]
[1727398986134,0.107083,65370.0,65367.0,0.001654]
[1727398986343,0.107086,65368.0,65367.0,0.001654]
[1727398986777,0.107085,65369.0,65367.0,0.001654]
[1727398986982,0.107086,65368.0,65367.0,0.001654]
[1727398988612,0.214166,65370.0,65367.0,0.001654]
[1727398988613,0.321249,65370.0,65367.0,0.001654]
[1727398988843,0.38614,65378.0,65370.0,0.107082]
[1727398989070,0.29164,65378.0,65370.0,0.107082]
[1727398989296,0.107075,65375.0,65370.0,0.107082]
[1727398989514,0.107075,65375.0,65367.0,0.001654]
[1727398989725,0.107076,65374.0,65370.0,0.107082]
[1727398989935,0.107076,65374.0,65367.0,0.001654]
[1727398990145,0.107076,65374.0,65369.0,0.107084]
[1727398990791,0.107076,65374.0,65369.0,0.107083]
[1727398991232,0.107078,65373.0,65369.0,0.107083]
[1727398991658,0.44360228,65376.0,65368.0,0.107084]
[1727398991879,0.107077,65374.0,65369.0,0.107084]
[1727398992544,0.214152,65374.0,65367.0,0.001654]
[1727398992762,0.10708,65372.0,65367.0,0.001654]
[1727398992995,0.107082,65371.0,65367.0,0.108741]
[1727398993220,0.107078,65373.0,65367.0,0.108741]
[1727398993433,0.107078,65373.0,65368.0,0.107086]
[1727398995261,0.001,65371.0,65368.0,0.107086]
[1727398995477,0.001,65371.0,65367.0,0.001654]
[1727398995744,0.001,65371.0,65367.0,0.10874]
[1727398995940,0.107906,65373.0,65367.0,0.001654]
[1727398996186,0.107906,65373.0,65368.0,0.107085]
[1727398996629,0.107907,65373.0,65367.0,0.108741]
[1727398996852,0.107079,65372.0,65367.0,0.108741]
[1727398997074,0.107079,65372.0,65368.0,0.107085]
[1727398997547,0.001,65371.0,65368.0,0.107085]
[1727398998274,0.001,65371.0,65367.0,0.08071346]
[1727398998502,0.001,65371.0,65367.0,0.15443428]
[1727398998728,0.000828,65373.0,65367.0,0.04734828]
[1727398998955,0.000828,65373.0,65367.0,0.001654]
[1727398998956,0.10708,65372.0,65367.0,0.001654]
[1727398999898,0.000828,65373.0,65367.0,0.001654]
[1727399000187,0.107081,65371.0,65367.0,0.001654]
[1727399000411,0.214162,65371.0,65367.0,0.001654]
[1727399000649,0.107086,65368.0,65367.0,0.001654]
[1727399002753,0.108086,65368.0,65367.0,0.001654]
[1727399005525,0.107099,65360.0,65358.0,0.04582717]
[1727399005756,0.214191,65363.0,65358.0,0.04582717]
[1727399005977,0.107098,65361.0,65358.0,0.04582717]
[1727399006190,0.107098,65361.0,65357.0,0.107103]
[1727399006717,0.107098,65361.0,65354.0,0.214215]
[1727399006718,0.107099,65360.0,65355.0,0.107106]
[1727399006927,0.107099,65360.0,65356.0,0.107105]
[1727399007140,0.107097,65362.0,65356.0,0.107105]
[1727399008271,0.9180067,65361.0,65352.0,0.076]
[1727399008502,0.107098,65361.0,65356.0,0.107104]
[1727399008761,0.9180067,65364.0,65351.0,0.11539944]
[1727399008975,0.107096,65362.0,65356.0,0.107104]
[1727399009216,0.001,65361.0,65356.0,0.107104]
[1727399009438,0.001,65361.0,65355.0,0.214214]
[1727399009668,0.001,65361.0,65354.0,0.17825672]
[1727399009920,0.001,65361.0,65360.0,0.107099]
[1727399009921,0.002,65361.0,65360.0,0.107099]
[1727399010179,0.002,65361.0,65360.0,0.46073899]
[1727399010410,0.002,65361.0,65360.0,0.57225195]
[1727399010628,0.9180067,65371.0,65368.0,0.107085]
[1727399011304,0.9180067,65371.0,65369.0,0.107084]
[1727399011573,0.000828,65373.0,65369.0,0.107082]
[1727399011852,0.000828,65373.0,65366.0,0.214178]
[1727399012059,0.000828,65373.0,65368.0,0.214171]
[1727399012270,0.000828,65373.0,65371.0,0.10708]
[1727399012727,0.000828,65373.0,65367.0,0.214174]
[1727399012960,0.000828,65373.0,65370.0,0.107081]
[1727399013864,0.000828,65373.0,65371.0,0.006]
[1727399014095,0.000828,65373.0,65370.0,0.107081]
[1727399014324,0.000828,65373.0,65372.0,0.107079]
[1727399016100,0.001828,65373.0,65372.0,0.007]
[1727399016321,0.001828,65373.0,65369.0,0.04582498]
[1727399016558,0.214167,65370.0,65366.0,0.06873279]
[1727399016783,0.1393621,65373.0,65372.0,0.006]
[1727399017061,0.107088,65367.0,65364.0,0.06873279]
[1727399017724,0.107088,65367.0,65363.0,0.06873279]
[1727399017940,0.107088,65367.0,65364.0,0.06873279]
[1727399018380,0.107088,65367.0,65362.0,0.0916251]
[1727399018381,0.214161,65372.0,65363.0,0.17582579]
[1727399018593,0.107084,65369.0,65364.0,0.34287254]
[1727399018805,0.107084,65369.0,65364.0,0.06873279]
[1727399018806,0.107086,65368.0,65364.0,0.06873279]
[1727399019026,0.214168,65369.0,65366.0,0.01]
[1727399019271,0.107087,65367.0,65363.0,0.17582579]
[1727399019597,0.107092,65364.0,65363.0,0.06873279]
[1727399019775,0.1745,65370.0,65360.0,0.06873279]
[1727399019776,0.107095,65362.0,65360.0,0.06873279]
[1727399020442,0.107095,65362.0,65360.0,0.06880328]
[1727399020663,0.21418,65366.0,65360.0,0.06880328]
[1727399020886,0.107093,65364.0,65360.0,0.06880328]
[1727399021338,0.0602854,65365.0,65360.0,0.06880328]
[1727399021571,0.107094,65363.0,65360.0,0.06880328]
[1727399022026,0.21418,65366.0,65360.0,0.06880328]
[1727399022255,0.001,65362.0,65360.0,0.07880328]
[1727399022467,0.107093,65364.0,65359.0,0.17590328]
[1727399022929,0.001,65363.0,65360.0,0.009]
[1727399023155,0.107093,65364.0,65359.0,0.17590328]
[1727399023406,0.108089,65366.0,65361.0,0.107096]
[1727399023630,0.1745,65370.0,65359.0,0.06880328]
[1727399023862,0.107089,65366.0,65361.0,0.107097]
[1727399024090,0.001,65364.0,65361.0,0.107097]
[1727399025237,0.107089,65366.0,65361.0,0.107097]
[1727399025460,0.108089,65366.0,65361.0,0.113097]
[1727399025696,0.108089,65366.0,65361.0,0.107097]
[1727399026185,0.001,65364.0,65361.0,0.008]
[1727399026421,0.10709,65366.0,65361.0,0.04586339]
[1727399026664,0.10809,65366.0,65361.0,0.15896039]
[1727399026883,0.10709,65366.0,65361.0,0.15296039]
[1727399027360,0.10809,65366.0,65361.0,0.15996039]
[1727399027823,0.10809,65366.0,65361.0,0.05286339]
[1727399028077,0.10809,65366.0,65362.0,0.107095]
[1727399028783,0.13107771,65366.0,65362.0,0.107095]
[1727399029010,0.13107771,65366.0,65361.0,0.04586339]
[1727399029011,0.107092,65365.0,65361.0,0.05186339]
[1727399029240,0.107092,65365.0,65361.0,0.15296039]
[1727399029684,0.13207671,65366.0,65361.0,0.15296039]
[1727399030153,0.02598771,65366.0,65362.0,0.007]
[1727399030378,0.02598771,65366.0,65364.0,0.04586339]
[1727399030379,0.02498771,65366.0,65364.0,0.04586339]
[1727399030625,0.02498771,65366.0,65365.0,0.10709]
[1727399030849,0.001,65366.0,65365.0,0.44969474]
[1727399031782,0.22947885,65370.0,65369.0,0.107084]
[1727399032222,0.107905,65373.0,65369.0,0.107084]
[1727399032541,0.1,65372.0,65369.0,0.107084]
[1727399033657,0.001654,65370.0,65369.0,0.107084]
[1727399034809,0.001654,65370.0,65369.0,0.15292901]
[1727399035074,0.001654,65370.0,65369.0,0.04584501]
[1727399035276,0.001654,65370.0,65368.0,0.04584501]
[1727399035512,0.002654,65370.0,65369.0,0.007]
[1727399035729,0.002654,65370.0,65368.0,0.15293101]
[1727399035730,0.001654,65370.0,65368.0,0.15293101]
[1727399035956,0.001654,65370.0,65369.0,0.04584501]
[1727399036181,0.002654,65370.0,65369.0,0.007]
[1727399036417,0.001654,65370.0,65368.0,0.04584501]
[1727399036640,0.001654,65370.0,65369.0,0.007]
[1727399036641,0.002654,65370.0,65369.0,0.007]
[1727399037517,0.04752407,65370.0,65369.0,0.007]
[1727399037931,0.04752407,65370.0,65367.0,0.15293201]
[1727399037932,0.04652407,65370.0,65367.0,0.15293201]
[1727399038151,0.0811,65369.0,65368.0,0.007]
[1727399038880,0.188184,65369.0,65368.0,0.007]
[1727399039117,0.188184,65369.0,65366.0,0.04584501]
[1727399039118,0.107087,65367.0,65366.0,0.04584501]
[1727399039329,0.0811,65369.0,65362.0,0.04584501]
[1727399039541,0.107093,65364.0,65362.0,0.04584501]
[1727399039755,0.0811,65369.0,65361.0,0.04667201]
[1727399039756,0.107091,65365.0,65361.0,0.04667201]
[1727399039961,0.31157885,65369.0,65361.0,0.15376901]
[1727399040207,0.10709,65366.0,65361.0,0.15376901]
[1727399040632,0.107091,65365.0,65361.0,0.04668935]
[1727399041310,0.321263,65367.0,65361.0,0.15378535]
[1727399041545,0.107088,65367.0,65362.0,0.109095]
[1727399041765,0.107088,65367.0,65362.0,0.107095]
[1727399041997,0.02398757,65366.0,65362.0,0.107095]
[1727399044111,0.02398757,65366.0,65363.0,0.04586235]
[1727399045444,0.02398757,65366.0,65363.0,0.002]
[1727399046123,0.13107657,65366.0,65363.0,0.002]
[1727399046534,0.107091,65365.0,65363.0,0.002]
[1727399047374,0.02398757,65366.0,65363.0,0.002]
[1727399047905,0.13107657,65366.0,65361.0,0.15378535]
[1727399048140,0.33657912,65362.0,65361.0,0.000827]
[1727399048383,0.205195,65362.0,65361.0,0.000827]
[1727399049557,0.205195,65362.0,65361.0,0.003827]
[1727399050919,0.205195,65362.0,65361.0,0.000827]
[1727399051135,0.207195,65362.0,65361.0,0.000827]
[1727399051848,0.13308436,65362.0,65361.0,0.000827]
[1727399053877,0.02598936,65362.0,65361.0,0.000827]
[1727399054097,0.13308436,65362.0,65361.0,0.000827]
[1727399054328,0.13108436,65362.0,65361.0,0.000827]
[1727399054580,0.02398936,65362.0,65361.0,0.107924]
[1727399055997,0.02398936,65362.0,65361.0,0.15779302]
[1727399056224,0.02398936,65362.0,65361.0,0.05067803]
[1727399056947,0.42906232,65362.0,65361.0,0.004827]
[1727399057207,0.40507296,65362.0,65361.0,0.004827]
[1727399057441,0.22670308,65362.0,65361.0,0.000827]
[1727399057667,0.22770308,65362.0,65361.0,0.009827]
[1727399058175,0.22670308,65362.0,65361.0,0.000827]
[1727399058593,0.183095,65362.0,65361.0,0.000827]
[1727399059796,1.586136,65362.0,65361.0,0.000827]
[1727399060033,0.772786,65362.0,65361.0,0.000827]
[1727399060245,0.4074877,65362.0,65361.0,0.000827]
[1727399061201,0.4094877,65362.0,65361.0,0.000827]
[1727399061665,0.4074877,65362.0,65361.0,0.000827]
[1727399061901,0.286095,65362.0,65361.0,0.000827]
[1727399062145,0.183095,65362.0,65361.0,0.000827]
[1727399062596,0.185095,65362.0,65361.0,0.000827]
[1727399064482,0.183095,65362.0,65361.0,0.000827]
[1727399064726,1.06431695,65362.0,65361.0,0.000827]
[1727399064948,0.47636095,65362.0,65361.0,0.000827]
[1727399065183,0.20708595,65362.0,65361.0,0.000827]
[1727399065401,0.20708595,65362.0,65361.0,0.001827]
[1727399066965,0.20708595,65362.0,65361.0,0.000827]
[1727399067416,0.76966095,65362.0,65361.0,0.000827]
[1727399068077,0.76966095,65362.0,65361.0,0.001827]
[1727399071098,0.75771595,65362.0,65361.0,0.001827]
[1727399071312,0.20708595,65362.0,65361.0,0.001827]
[1727399071785,0.13108595,65362.0,65361.0,0.000827]
[1727399072247,0.13208595,65362.0,65361.0,0.000827]
[1727399073654,0.13108595,65362.0,65361.0,0.000827]
[1727399073851,0.13208595,65362.0,65361.0,0.000827]
[1727399074118,0.13108595,65362.0,65361.0,0.000827]
[1727399077341,0.13208595,65362.0,65361.0,0.000827]
[1727399080059,0.108095,65362.0,65361.0,0.000827]
[1727399080482,0.107095,65362.0,65361.0,0.000827]
[1727399080704,0.107095,65362.0,65361.0,0.003827]
[1727399080925,0.107095,65362.0,65361.0,0.000827]
[1727399081352,0.107095,65362.0,65361.0,0.004827]
[1727399081565,0.108749,65362.0,65361.0,0.000827]
[1727399082004,0.108749,65362.0,65361.0,0.004827]
[1727399082215,0.108749,65362.0,65361.0,0.000827]
[1727399083795,0.108749,65362.0,65361.0,0.004827]
[1727399083982,0.108749,65362.0,65361.0,0.000827]
[1727399084446,0.108749,65362.0,65361.0,0.004827]
[1727399084447,0.13273893,65362.0,65361.0,0.004827]
[1727399084692,0.13273893,65362.0,65361.0,0.000827]
[1727399085121,0.13273893,65362.0,65361.0,0.004827]
[1727399085343,0.13273893,65362.0,65361.0,0.000827]
[1727399085555,0.13273893,65362.0,65361.0,0.004827]
[1727399087096,0.13273893,65362.0,65361.0,0.000827]
[1727399087317,0.13273893,65362.0,65361.0,0.003827]
[1727399087779,0.13273893,65362.0,65361.0,0.000827]
[1727399088720,0.47820212,65362.0,65361.0,0.000827]
[1727399088938,0.45421219,65362.0,65361.0,0.000827]
[1727399089829,0.275849,65362.0,65361.0,0.000827]
[1727399090511,0.277849,65362.0,65361.0,0.000827]
[1727399090733,0.275849,65362.0,65361.0,0.000827]
[1727399090955,0.278849,65362.0,65361.0,0.000827]
[1727399091421,0.275849,65362.0,65361.0,0.000827]
[1727399091646,0.280849,65362.0,65361.0,0.000827]
[1727399091870,0.275849,65362.0,65361.0,0.000827]
[1727399092324,0.29984067,65362.0,65361.0,0.000827]
[1727399092996,0.39158338,65362.0,65361.0,0.000827]
[1727399093986,0.39458338,65362.0,65361.0,0.000827]
[1727399094197,0.56994657,65362.0,65361.0,0.000827]
[1727399094419,0.50866722,65362.0,65361.0,0.000827]
[1727399094637,0.51366722,65362.0,65361.0,0.000827]
[1727399094854,0.50866722,65362.0,65361.0,0.000827]
[1727399095068,0.51066722,65362.0,65361.0,0.000827]
[1727399096846,0.50866722,65362.0,65361.0,0.000827]
[1727399097087,0.51366722,65362.0,65361.0,0.000827]
[1727399097541,0.50866722,65362.0,65361.0,0.000827]
[1727399097784,2.02423022,65362.0,65361.0,0.000827]
[1727399098011,2.02123022,65362.0,65361.0,0.000827]
[1727399098926,2.00223855,65362.0,65361.0,0.000827]
[1727399099696,1.91049584,65362.0,65361.0,0.000827]
[1727399099916,1.88133484,65362.0,65361.0,0.000827]
[1727399100368,1.87633484,65362.0,65361.0,0.000827]
[1727399100602,1.88333484,65362.0,65361.0,0.001827]
[1727399100829,1.52702084,65362.0,65361.0,0.001827]
[1727399101053,1.09821984,65362.0,65361.0,0.001827]
[1727399101497,1.09121984,65362.0,65361.0,0.000827]
[1727399101753,1.10521984,65362.0,65361.0,0.000827]
[1727399101981,1.09121984,65362.0,65361.0,0.000827]
[1727399102213,1.11521353,65362.0,65361.0,0.000827]
[1727399102461,0.99812969,65362.0,65361.0,0.000827]
[1727399102727,1.29635769,65362.0,65361.0,0.000827]
[1727399102966,0.23274269,65362.0,65361.0,0.000827]
[1727399103448,0.115749,65362.0,65361.0,0.001827]
[1727399103695,0.03264498,65362.0,65361.0,0.202324]
[1727399103950,0.02564498,65362.0,65361.0,0.250273]
[1727399104171,0.03164498,65362.0,65361.0,0.47431958]
[1727399104657,0.03164498,65362.0,65361.0,0.58119958]
[1727399104885,0.001654,65362.0,65361.0,0.58019958]
[1727399105348,0.001654,65362.0,65361.0,0.58119958]
[1727399106544,0.02398532,65364.0,65363.0,0.002]
[1727399106784,0.00928532,65364.0,65363.0,0.76637977]
[1727399107013,0.001654,65370.0,65369.0,0.213964]
[1727399107234,0.001654,65370.0,65369.0,0.66436977]
[1727399107676,0.001654,65370.0,65369.0,0.75776977]
[1727399109117,0.002654,65370.0,65369.0,0.76676977]
[1727399110084,0.002654,65370.0,65369.0,0.76876977]
[1727399110335,0.001654,65370.0,65369.0,0.85114743]
[1727399110567,0.001654,65370.0,65369.0,0.75976977]
[1727399110795,0.000828,65373.0,65372.0,0.139759]
[1727399111013,0.000828,65373.0,65372.0,0.49501322]
[1727399111263,0.000828,65373.0,65372.0,0.49195458]
[1727399111520,0.000828,65373.0,65372.0,0.48742336]
[1727399111963,0.000828,65373.0,65372.0,0.58462336]
[1727399112190,0.22948412,65382.0,65381.0,0.49205419]
[1727399112870,0.001654,65400.0,65385.0,0.107058]
[1727399113117,0.001654,65400.0,65385.0,0.43595606]
[1727399113336,0.001654,65400.0,65399.0,0.46484519]
[1727399113586,0.22948412,65406.0,65402.0,0.13971]
[1727399113817,0.22948412,65406.0,65405.0,0.31811519]
[1727399114069,0.22948412,65406.0,65405.0,0.31611519]
[1727399114306,0.22948412,65406.0,65405.0,0.137705]
[1727399114588,0.22948412,65406.0,65405.0,0.107025]
[1727399114819,0.000827,65410.0,65400.0,0.214064]
[1727399115046,0.000827,65410.0,65402.0,0.014]
[1727399115501,0.000827,65410.0,65400.0,0.214064]
[1727399115718,0.02397166,65408.0,65404.0,0.428104]
[1727399115937,0.02397166,65408.0,65407.0,0.107022]
[1727399117608,0.000827,65410.0,65409.0,0.107018]
[1727399117854,0.000827,65410.0,65409.0,0.28848535]
[1727399118516,0.000827,65410.0,65409.0,0.28542819]
[1727399120571,0.001827,65410.0,65409.0,0.29942819]
[1727399120797,0.000827,65410.0,65409.0,0.28542819]
[1727399121019,0.000827,65410.0,65409.0,0.107018]
[1727399121261,0.001827,65410.0,65409.0,0.121018]
[1727399121506,0.001827,65410.0,65406.0,0.107023]
[1727399121507,0.000827,65410.0,65406.0,0.107023]
[1727399121985,0.001827,65410.0,65409.0,0.014]
[1727399122251,0.001827,65410.0,65409.0,0.121018]
[1727399122921,0.001827,65410.0,65409.0,0.12407529]
[1727399123142,0.001827,65410.0,65409.0,0.121018]
[1727399123372,0.000827,65410.0,65409.0,0.107018]
[1727399123613,0.000827,65410.0,65407.0,0.107021]
[1727399123837,0.001827,65410.0,65406.0,0.007]
[1727399124073,0.000827,65410.0,65394.0,0.03068]
[1727399124302,0.108844,65410.0,65409.0,0.014]
[1727399124900,0.000827,65410.0,65405.0,0.214048]
[1727399125109,0.00052287,65410.0,65409.0,0.107018]
[1727399125324,0.02396967,65412.0,65409.0,0.107018]
[1727399125899,0.02396967,65412.0,65405.0,0.107024]
[1727399126170,0.02396967,65412.0,65407.0,0.107021]
[1727399126391,0.02396967,65412.0,65408.0,0.10702]
[1727399126603,0.02396967,65412.0,65409.0,0.002]
[1727399127012,0.02396967,65412.0,65409.0,0.107017]
[1727399127220,0.02396967,65412.0,65407.0,0.214042]
[1727399127444,0.02396967,65412.0,65410.0,0.107017]
[1727399128081,0.000827,65414.0,65410.0,0.107017]
[1727399128560,0.000827,65414.0,65410.0,0.11007416]
[1727399128776,0.000827,65414.0,65408.0,0.29474]
[1727399128990,0.000827,65414.0,65413.0,0.107012]
[1727399129215,0.000827,65414.0,65413.0,0.11006908]
[1727399130550,0.000827,65414.0,65413.0,0.11006907]
[1727399131655,0.00806846,65414.0,65413.0,0.12306907]
[1727399131875,0.000827,65414.0,65413.0,0.120012]
[1727399132093,0.00806846,65414.0,65413.0,0.120012]
[1727399132316,0.000827,65414.0,65413.0,0.120012]
[1727399132571,0.00806846,65414.0,65413.0,0.120012]
[1727399132802,0.000827,65414.0,65413.0,0.120012]
[1727399133279,0.00806846,65414.0,65413.0,0.12306904]
[1727399133500,0.000827,65414.0,65413.0,0.120012]
[1727399133736,0.000827,65414.0,65413.0,0.107012]
[1727399134182,0.000827,65414.0,65413.0,0.120012]
[1727399135772,0.02396706,65420.0,65413.0,0.013]
[1727399135983,0.02396706,65420.0,65419.0,0.107002]
[1727399137760,0.02396706,65420.0,65419.0,0.114002]
[1727399138251,0.02396706,65420.0,65414.0,0.21402]
[1727399138469,0.02396706,65420.0,65419.0,0.007]
[1727399138679,0.02396706,65420.0,65416.0,0.107006]
[1727399138912,0.00589136,65420.0,65416.0,0.107006]
[1727399139140,0.213982,65427.0,65416.0,0.107006]
[1727399139367,0.106996,65423.0,65407.0,0.01911098]
[1727399139577,0.107003,65419.0,65410.0,0.107016]
[1727399139787,0.106998,65422.0,65414.0,0.107009]
[1727399140002,0.11292078,65422.0,65419.0,0.007]
[1727399140207,0.106998,65422.0,65419.0,0.007]
[1727399140417,0.106997,65423.0,65411.0,0.214028]
[1727399140627,0.106997,65423.0,65415.0,0.107008]
[1727399140833,0.106997,65423.0,65416.0,0.00305699]
[1727399141040,0.213988,65424.0,65411.0,0.214028]
[1727399141251,0.107003,65419.0,65411.0,0.107014]
[1727399141456,0.107003,65419.0,65413.0,0.107011]
[1727399141884,0.107003,65419.0,65415.0,0.004]
[1727399143166,0.107003,65419.0,65413.0,0.107011]